fUST/lending_fUST_20250901
["ID","MTS","AMOUNT","RATE_DAILY","PERIOD"]
[382651443,1756695055386,-3068.97,0.00016579,2]
[382651445,1756695055395,-11180.73383606,0.0001658,2]
[382651446,1756695055405,-480.0,0.0001658,2]
[382651447,1756695055414,-480.0,0.0001658,2]
[382651448,1756695055424,-155.579698,0.0001658,2]
[382651449,1756695055434,-634.77,0.0001658,2]
[382651450,1756695055446,-151.0,0.0001658,2]
[382651451,1756695055456,-480.0,0.0001658,2]
[382651452,1756695055465,-480.0,0.0001658,2]
[382651453,1756695055475,-480.0,0.0001658,2]
[382651454,1756695055486,-480.0,0.0001658,2]
[382651455,1756695055495,-480.0,0.0001658,2]
[382651456,1756695055507,-480.0,0.0001658,2]
[382651457,1756695055517,-480.0,0.0001658,2]
[382651458,1756695055527,-847.34,0.0001658,2]
[382651459,1756695055538,-515.91,0.0001658,2]
[382651460,1756695055547,-480.0,0.0001658,2]
[382651461,1756695055557,-763.43,0.0001658,2]
[382651462,1756695055567,-480.0,0.0001658,2]
[382651463,1756695055576,-525.86,0.0001658,2]
[382651464,1756695055586,-480.0,0.0001658,2]
[382651465,1756695055596,-480.0,0.0001658,2]
[382651466,1756695055605,-480.0,0.0001658,2]
[382651467,1756695055614,-1069.68,0.0001658,2]
[382651468,1756695055625,-480.0,0.0001658,2]
[382651469,1756695055635,-480.0,0.0001658,2]
[382651470,1756695055645,-480.0,0.0001658,2]
[382651471,1756695055655,-480.0,0.0001658,2]
[382651472,1756695055665,-1038.56,0.0001658,2]
[382651473,1756695055674,-480.0,0.0001658,2]
[382651474,1756695055683,-480.0,0.0001658,2]
[382651475,1756695055692,-480.0,0.0001658,2]
[382651476,1756695055702,-937.95,0.0001658,2]
[382651477,1756695055711,-731.64,0.0001658,2]
[382651478,1756695055721,-480.0,0.0001658,2]
[382651479,1756695055731,-480.0,0.0001658,2]
[382651480,1756695055740,-1003.1,0.0001658,2]
[382651481,1756695055750,-480.0,0.0001658,2]
[382651482,1756695055762,-480.0,0.0001658,2]
[382651483,1756695055771,-929.76,0.0001658,2]
[382651484,1756695055781,-480.0,0.0001658,2]
[382651485,1756695055792,-480.0,0.0001658,2]
[382651486,1756695055803,-480.0,0.0001658,2]
[382651487,1756695055812,-527.52009378,0.0001658,2]
[382651488,1756695055821,-159.919406,0.0001658,2]
[382651489,1756695055830,-480.0,0.0001658,2]
[382651490,1756695055840,-918.54,0.0001658,2]
[382651491,1756695055850,-480.0,0.0001658,2]
[382651492,1756695055859,-151.0,0.0001658,2]
[382651493,1756695055869,-480.0,0.0001658,2]
[382651494,1756695055879,-758.34,0.0001658,2]
[382651495,1756695055888,-480.0,0.0001658,2]
[382651496,1756695055897,-480.0,0.0001658,2]
[382651497,1756695055907,-151.0,0.0001658,2]
[382651498,1756695055916,-151.0,0.0001658,2]
[382651499,1756695055926,-480.0,0.0001658,2]
[382651500,1756695055935,-480.0,0.0001658,2]
[382651501,1756695055944,-480.0,0.0001658,2]
[382651502,1756695055954,-480.0,0.0001658,2]
[382651503,1756695055964,-480.0,0.0001658,2]
[382651504,1756695055973,-480.0,0.0001658,2]
[382651505,1756695055983,-487.0,0.0001658,2]
[382651506,1756695055993,-480.0,0.0001658,2]
[382651507,1756695056004,-480.0,0.0001658,2]
[382651508,1756695056016,-480.0,0.0001658,2]
[382651509,1756695056026,-480.0,0.0001658,2]
[382651510,1756695056035,-480.0,0.0001658,2]
[382651511,1756695056045,-480.0,0.0001658,2]
[382651512,1756695056054,-151.389909,0.0001658,2]
[382651513,1756695056064,-904.84,0.0001658,2]
[382651514,1756695056074,-480.0,0.0001658,2]
[382651515,1756695056084,-480.0,0.0001658,2]
[382651516,1756695056093,-919.82,0.0001658,2]
[382651517,1756695056103,-482.51098347,0.0001658,2]
[382651518,1756695056112,-480.0,0.0001658,2]
[382651519,1756695056122,-480.0,0.0001658,2]
[382651520,1756695056131,-782.42,0.0001658,2]
[382651521,1756695056141,-480.0,0.0001658,2]
[382651522,1756695056150,-480.0,0.0001658,2]
[382651523,1756695056160,-1041.72,0.0001658,2]
[382651524,1756695056170,-976.25,0.0001658,2]
[382651525,1756695056180,-480.0,0.0001658,2]
[382651526,1756695056189,-1108.35,0.0001658,2]
[382651527,1756695056199,-480.0,0.0001658,2]
[382651528,1756695056211,-877.71,0.0001658,2]
[382651529,1756695056221,-480.0,0.0001658,2]
[382651530,1756695056230,-1179.63,0.0001658,2]
[382651531,1756695056241,-684.08,0.0001658,2]
[382651532,1756695056250,-538.91,0.0001658,2]
[382651533,1756695056264,-480.0,0.0001658,2]
[382651534,1756695056273,-502.01,0.0001658,2]
[382651535,1756695056283,-480.0,0.0001658,2]
[382651536,1756695056292,-546.27,0.0001658,2]
[382651537,1756695056302,-481.69695637,0.0001658,2]
[382651538,1756695056312,-480.0,0.0001658,2]
[382651539,1756695056322,-480.0,0.0001658,2]
[382651540,1756695056331,-480.0,0.0001658,2]
[382651541,1756695056341,-480.0,0.0001658,2]
[382651542,1756695056356,-646.11,0.0001658,2]
[382651543,1756695056369,-480.0,0.0001658,2]
[382651544,1756695056379,-480.0,0.0001658,2]
[382651545,1756695056389,-480.0,0.0001658,2]
[382651546,1756695056398,-156.210329,0.0001658,2]
[382651547,1756695056408,-1721.91,0.0001658,2]
[382651548,1756695056417,-151.0,0.0001658,2]
[382651549,1756695056427,-151.0,0.0001658,2]
[382651550,1756695056437,-151.0,0.0001658,2]
[382651551,1756695056447,-480.0,0.0001658,2]
[382651552,1756695056456,-1044.46,0.0001658,2]
[382651553,1756695056467,-480.0,0.0001658,2]
[382651554,1756695056476,-151.0,0.0001658,2]
[382651555,1756695056486,-480.0,0.0001658,2]
[382651556,1756695056495,-151.0,0.0001658,2]
[382651557,1756695056549,-504.33,0.0001658,2]
[382651558,1756695056559,-480.0,0.0001658,2]
[382651559,1756695056568,-500.07,0.0001658,2]
[382651560,1756695056577,-480.0,0.0001658,2]
[382651561,1756695056586,-154.442497,0.0001658,2]
[382651562,1756695056595,-482.36520786,0.0001658,2]
[382651563,1756695056604,-480.0,0.0001658,2]
[382651564,1756695056615,-480.0,0.0001658,2]
[382651565,1756695056625,-276.040837,0.0001658,2]
[382651566,1756695056634,-480.0,0.0001658,2]
[382651567,1756695056643,-151.0,0.0001658,2]
[382651568,1756695056652,-594.65,0.0001658,2]
[382651569,1756695056663,-480.0,0.0001658,2]
[382651570,1756695056672,-151.0,0.0001658,2]
[382651571,1756695056682,-267.383796,0.0001658,2]
[382651572,1756695056691,-480.0,0.0001658,2]
[382651573,1756695056700,-480.0,0.0001658,2]
[382651574,1756695056709,-267.383796,0.0001658,2]
[382651575,1756695056719,-154.173613,0.00016581,2]
[382651576,1756695056728,-1175.91,0.00016581,2]
[382651577,1756695056738,-639.97,0.00016581,2]
[382651578,1756695056747,-296.769354,0.00016581,2]
[382651579,1756695056760,-151.0,0.00016581,2]
[382651580,1756695056770,-151.0,0.00016581,2]
[382651581,1756695056779,-151.0,0.00016581,2]
[382651582,1756695056789,-153.354446,0.00016581,2]
[382651583,1756695056802,-548.31,0.00016581,2]
[382651584,1756695056812,-480.0,0.00016581,2]
[382651585,1756695056822,-151.0,0.00016581,2]
[382651586,1756695056831,-195.389863,0.00016581,2]
[382651587,1756695056841,-151.0,0.00016581,2]
[382651588,1756695056851,-151.0,0.00016581,2]
[382651589,1756695056860,-151.0,0.00016581,2]
[382651590,1756695056870,-821.63,0.00016581,2]
[382651591,1756695056879,-159.342596,0.00016581,2]
[382651593,1756695056888,-159.342596,0.00016581,2]
[382651594,1756695056898,-159.342596,0.00016581,2]
[382651595,1756695056907,-159.342596,0.00016581,2]
[382651596,1756695056917,-501.53371734,0.00016581,2]
[382651597,1756695056926,-1077.37,0.00016581,2]
[382651598,1756695056936,-501.32,0.00016581,2]
[382651599,1756695056945,-614.81,0.00016581,2]
[382651600,1756695056955,-480.0,0.00016581,2]
[382651601,1756695056963,-480.0,0.00016581,2]
[382651602,1756695056972,-480.0,0.00016581,2]
[382651603,1756695056982,-480.0,0.00016581,2]
[382651604,1756695056991,-670.86,0.00016581,2]
[382651605,1756695057000,-480.0,0.00016581,2]
[382651606,1756695057012,-916.7,0.00016581,2]
[382651607,1756695057021,-612.4,0.00016581,2]
[382651608,1756695057030,-480.0,0.00016581,2]
[382651609,1756695057039,-480.0,0.00016581,2]
[382651611,1756695057048,-480.0,0.00016581,2]
[382651612,1756695057058,-879.82,0.00016581,2]
[382651613,1756695057067,-480.0,0.00016581,2]
[382651614,1756695057076,-593.38,0.00016581,2]
[382651615,1756695057085,-480.0,0.00016581,2]
[382651616,1756695057094,-886.04,0.00016581,2]
[382651617,1756695057105,-480.0,0.00016581,2]
[382651618,1756695057115,-1578.52,0.00016581,2]
[382651619,1756695057123,-480.0,0.00016581,2]
[382651620,1756695057133,-480.0,0.00016581,2]
[382651621,1756695057142,-480.0,0.00016581,2]
[382651622,1756695057151,-466.03785895,0.00016581,2]
[382651623,1756695057161,-480.0,0.00016581,2]
[382651624,1756695057171,-571.69,0.00016581,2]
[382651625,1756695057180,-480.0,0.00016581,2]
[382651626,1756695057191,-650.99,0.00016581,2]
[382651627,1756695057200,-480.0,0.00016581,2]
[382651628,1756695057211,-480.0,0.00016581,2]
[382651629,1756695057221,-480.0,0.00016581,2]
[382651630,1756695057230,-761.37,0.00016581,2]
[382651631,1756695057239,-759.74,0.00016581,2]
[382651632,1756695057249,-1074.42,0.00016582,2]
[382651633,1756695057260,-480.0,0.00016582,2]
[382651634,1756695057270,-480.0,0.00016582,2]
[382651635,1756695057279,-480.0,0.00016582,2]
[382651636,1756695057289,-480.0,0.00016582,2]
[382651637,1756695057298,-503.32,0.00016582,2]
[382651638,1756695057308,-480.0,0.00016582,2]
[382651639,1756695057318,-1013.53,0.00016582,2]
[382651640,1756695057327,-480.0,0.00016582,2]
[382651641,1756695057336,-480.0,0.00016582,2]
[382651642,1756695057346,-1025.94,0.00016582,2]
[382651643,1756695057355,-993.87,0.00016582,2]
[382651644,1756695057365,-480.0,0.00016582,2]
[382651645,1756695057375,-480.0,0.00016582,2]
[382651646,1756695057384,-480.0,0.00016582,2]
[382651647,1756695057395,-480.0,0.00016582,2]
[382651648,1756695057405,-480.0,0.00016582,2]
[382651649,1756695057415,-555.02,0.00016582,2]
[382651650,1756695057425,-153.23729,0.00016582,2]
[382651651,1756695057435,-480.0,0.00016582,2]
[382651652,1756695057444,-283.43679218,0.00016582,2]
[382651664,1756695125649,3000.0,0.0001404,2]
[382651667,1756695129882,-305.05798126,0.0001541,2]
[382651669,1756695133417,-228.54871323,0.0001541,2]
[382651670,1756695135349,-313.68341404,0.0001541,2]
[382651671,1756695135665,228.54871323,0.000152,2]
[382651672,1756695139351,-226.81347349,0.0001541,2]
[382651673,1756695141529,-178.70780967,0.0001541,2]
[382651674,1756695143080,-239.43325579,0.0001541,2]
[382651675,1756695145779,-264.49017865,0.0001541,2]
[382651676,1756695147906,-217.13076283,0.0001541,2]
[382651677,1756695150266,-227.52554716,0.0001541,2]
[382651678,1756695152726,-211.28758646,0.0001541,2]
[382651679,1756695154427,-291.38211966,0.0001541,2]
[382651680,1756695156029,-203.39422408,0.0001541,2]
[382651681,1756695157948,2170.45414775,0.000152,2]
[382651682,1756695158364,-92.54493368,0.0001541,2]
[382651683,1756695158385,-215.37793246,0.0001587,2]
[382651684,1756695161039,-38.31741774,0.0001587,2]
[382651685,1756695221869,399.33445209,0.00025,30]
[382651686,1756695365383,305.05798126,0.0001611,6]
[382651687,1756695381694,-267.87705765,0.00015457,2]
[382651688,1756695384419,-217.32031386,0.00015457,2]
[382651689,1756695388190,-26.11971871,0.00015457,2]
[382651698,1756695863589,-240.93046292,0.0001548,2]
[382651699,1756695865849,-239.46758942,0.0001548,2]
[382651700,1756695868880,-264.71372875,0.0001541,2]
[382651701,1756695871565,-235.28627125,0.0001541,2]
[382651702,1756695871589,-19.60194766,0.0001548,2]
[382651703,1756695872215,50.29790639,0.0001541,2]
[382651704,1756695876810,-447.24107024,0.0001541,2]
[382651705,1756695879469,-2.46102337,0.0001541,2]
[382651707,1756695983249,833.039039,0.00013699,2]
[382651714,1756696209669,-270.48817166,0.00015926,2]
[382651715,1756696209702,-1200.0,0.00015927,2]
[382651716,1756696209735,-447.0,0.00015928,2]
[382651717,1756696209765,-253.0,0.00015928,2]
[382651718,1756696209800,-298.0,0.00015928,2]
[382651719,1756696209832,-300.0,0.00015928,2]
[382651720,1756696210116,-300.0,0.00015928,2]
[382651721,1756696210149,-300.0,0.00015928,2]
[382651722,1756696210180,-260.09993265,0.0001593,2]
[382651723,1756696210398,-3422.90131652,0.0001593,2]
[382651724,1756696210452,-3154.20736696,0.0001593,2]
[382651725,1756696210480,-1000.0,0.00016,2]
[382651726,1756696210508,-568.80193614,0.00016,2]
[382651727,1756696210560,-975.95796933,0.00016,2]
[382651728,1756696210589,-500.0,0.00016025,2]
[382651729,1756696210621,-493.55794117,0.00016025,2]
[382651730,1756696210650,-500.0,0.00016025,2]
[382651731,1756696210679,-500.0,0.00016025,2]
[382651732,1756696210707,-233.34999644,0.00016025,2]
[382651733,1756696210736,-500.0,0.00016025,2]
[382651734,1756696210765,-254.79930086,0.00016025,2]
[382651735,1756696210795,-871.66,0.00016026,2]
[382651736,1756696210932,-645.5,0.00016026,2]
[382651737,1756696210961,-480.0,0.00016026,2]
[382651738,1756696210990,-480.0,0.00016026,2]
[382651739,1756696211021,-486.66,0.00016026,2]
[382651740,1756696211049,-480.0,0.00016026,2]
[382651741,1756696211078,-1880.26,0.00016026,2]
[382651742,1756696211107,-148.47,0.00016026,2]
[382651743,1756696211235,-798.23,0.00016026,2]
[382651744,1756696211266,-480.0,0.00016026,2]
[382651745,1756696211296,-453.99555922,0.00016026,2]
[382651746,1756696211325,-480.0,0.00016026,2]
[382651747,1756696211355,-1052.47,0.00016026,2]
[382651748,1756696211393,-480.0,0.00016026,2]
[382651749,1756696211462,-480.0,0.00016026,2]
[382651750,1756696211493,-480.0,0.00016026,2]
[382651751,1756696211930,-1720.76,0.00016026,2]
[382651752,1756696211956,-480.0,0.00016026,2]
[382651753,1756696211984,-1099.73,0.00016026,2]
[382651754,1756696212039,-480.0,0.00016026,2]
[382651755,1756696212107,-538.89,0.00016026,2]
[382651756,1756696212152,-480.0,0.00016026,2]
[382651757,1756696212309,-699.86490985,0.00016026,2]
[382651758,1756696212339,-699.86490985,0.00016026,2]
[382651759,1756696212370,-699.86490985,0.00016026,2]
[382651760,1756696212400,-699.86490985,0.00016026,2]
[382651761,1756696212431,-699.86490985,0.00016026,2]
[382651762,1756696212461,-699.86490985,0.00016026,2]
[382651763,1756696212490,-699.86490985,0.00016026,2]
[382651764,1756696212849,-699.86490985,0.00016026,2]
[382651765,1756696212881,-699.86490985,0.00016026,2]
[382651766,1756696212910,-699.86490985,0.00016026,2]
[382651767,1756696212941,-699.86490985,0.00016026,2]
[382651768,1756696212971,-699.86490985,0.00016026,2]
[382651769,1756696213001,-699.86490985,0.00016026,2]
[382651770,1756696213032,-699.86490985,0.00016026,2]
[382651771,1756696213235,-699.86490985,0.00016026,2]
[382651772,1756696213271,-699.86490985,0.00016026,2]
[382651773,1756696213303,-699.86490985,0.00016026,2]
[382651774,1756696213335,-744.40176774,0.00016026,2]
[382651775,1756696213379,-744.40176774,0.00016026,2]
[382651776,1756696213416,-744.40176774,0.00016026,2]
[382651777,1756696213453,-590.00816672,0.00016026,2]
[382651778,1756696215391,-744.40176774,0.00016026,2]
[382651779,1756696215421,-744.40176774,0.00016026,2]
[382651780,1756696219614,-111.67646452,0.00016026,2]
[382651781,1756696219645,-154.39360102,0.00016026,2]
[382651782,1756696219678,-744.40176774,0.00016026,2]
[382651783,1756696219711,-744.40176774,0.00016026,2]
[382651784,1756696219748,-744.40176774,0.00016026,2]
[382651785,1756696219779,-744.40176774,0.00016026,2]
[382651786,1756696219811,-744.40176774,0.00016026,2]
[382651787,1756696219842,-744.40176774,0.00016026,2]
[382651788,1756696219872,-55.04865604,0.00016027,2]
[382651789,1756696220062,-424.95134396,0.00016027,2]
[382651790,1756696220094,-480.0,0.00016027,2]
[382651791,1756696220123,-720.12,0.00016027,2]
[382651792,1756696220155,-308.07723876,0.00016027,2]
[382651793,1756696220187,-613.63222339,0.00016027,2]
[382651794,1756696220217,-480.0,0.00016027,2]
[382651795,1756696220247,-480.0,0.00016027,2]
[382651796,1756696220278,-480.0,0.00016027,2]
[382651797,1756696220307,-480.0,0.00016027,2]
[382651798,1756696220337,-480.0,0.00016027,2]
[382651799,1756696220451,-1058.38,0.00016027,2]
[382651800,1756696220481,-480.0,0.00016027,2]
[382651801,1756696220510,-480.0,0.00016027,2]
[382651802,1756696220540,-480.0,0.00016027,2]
[382651803,1756696220570,-480.0,0.00016027,2]
[382651804,1756696220600,-480.0,0.00016027,2]
[382651805,1756696220629,-480.0,0.00016027,2]
[382651806,1756696220659,-657.55,0.00016027,2]
[382651807,1756696220688,-328.15,0.00016027,2]
[382651808,1756696220758,-151.85,0.00016027,2]
[382651809,1756696220787,-517.31,0.00016027,2]
[382651810,1756696220816,-967.89,0.00016027,2]
[382651811,1756696220844,-932.46,0.00016027,2]
[382651812,1756696220872,-605.32,0.00016027,2]
[382651813,1756696220900,-480.0,0.00016027,2]
[382651814,1756696220928,-480.0,0.00016027,2]
[382651815,1756696220957,-620.08695432,0.00016027,2]
[382651816,1756696220985,-10.17609136,0.00016027,2]
[382651817,1756696221056,-469.82390864,0.00016027,2]
[382651818,1756696221085,-480.0,0.00016027,2]
[382651819,1756696221114,-480.0,0.00016027,2]
[382651820,1756696221148,-598.11,0.00016027,2]
[382651821,1756696221177,-480.0,0.00016027,2]
[382651822,1756696221207,-480.0,0.00016027,2]
[382651823,1756696221235,-582.1,0.00016027,2]
[382651824,1756696221264,-480.0,0.00016027,2]
[382651825,1756696221423,-3133.0,0.00016027,2]
[382651826,1756696221454,-480.0,0.00016027,2]
[382651827,1756696221483,-480.0,0.00016027,2]
[382651828,1756696221512,-806.19,0.00016027,2]
[382651829,1756696222078,-480.0,0.00016027,2]
[382651830,1756696222107,-480.0,0.00016027,2]
[382651831,1756696222138,-695.76,0.00016027,2]
[382651832,1756696222166,-480.0,0.00016027,2]
[382651833,1756696222197,-1306.18,0.00016027,2]
[382651834,1756696222227,-721.68,0.00016027,2]
[382651835,1756696222256,-480.0,0.00016027,2]
[382651836,1756696222285,-48.92,0.00016027,2]
[382651837,1756696222422,-614.93,0.00016027,2]
[382651838,1756696222451,-584.5,0.00016027,2]
[382651839,1756696222479,-758.91,0.00016027,2]
[382651840,1756696222508,-865.07,0.00016027,2]
[382651841,1756696222539,-514.19,0.00016027,2]
[382651842,1756696222567,-533.16,0.00016027,2]
[382651843,1756696222596,-480.0,0.00016027,2]
[382651844,1756696222624,-622.06,0.00016027,2]
[382651845,1756696222765,-54.37,0.00016027,2]
[382651846,1756696222798,-4688.72,0.00016027,2]
[382651847,1756696222826,-33.83,0.00016027,2]
[382651848,1756696223003,-446.17,0.00016027,2]
[382651849,1756696223030,-480.0,0.00016027,2]
[382651850,1756696223062,-480.0,0.00016027,2]
[382651851,1756696223090,-480.0,0.00016027,2]
[382651852,1756696223118,-611.72,0.00016027,2]
[382651853,1756696223150,-480.0,0.00016027,2]
[382651854,1756696224517,-1010.5958231,0.00016027,2]
[382651855,1756696224532,-480.0,0.00016027,2]
[382651856,1756696224564,-446.17,0.00016027,2]
[382651857,1756696224590,-480.0,0.00016027,2]
[382651858,1756696224663,-480.0,0.00016027,2]
[382651859,1756696224695,-480.0,0.00016027,2]
[382651860,1756696224710,-611.72,0.00016027,2]
[382651861,1756696224724,-477.8541769,0.00016027,2]
[382651862,1756696224735,-2.1458231,0.00016027,2]
[382651863,1756696224754,-1087.8641769,0.00016027,2]
[382651864,1756696224764,-796.95,0.00016027,2]
[382651865,1756696224773,-1792.81,0.00016027,2]
[382651866,1756696224783,-366.6058231,0.00016027,2]
[382651928,1756696232290,-185.74,0.00016022,3]
[382651930,1756696232300,-292.0541769,0.00016027,2]
[382651932,1756696232311,-572.07,0.00016027,2]
[382651934,1756696232320,-480.0,0.00016027,2]
[382651936,1756696232330,-589.93,0.00016027,2]
[382651938,1756696232339,-4563.95,0.00016027,2]
[382651940,1756696232348,-480.0,0.00016027,2]
[382651942,1756696232357,-480.0,0.00016027,2]
[382651944,1756696232367,-693.97,0.00016027,2]
[382651946,1756696232376,-480.0,0.00016027,2]
[382651948,1756696232386,-480.0,0.00016027,2]
[382651950,1756696232395,-480.0,0.00016027,2]
[382651952,1756696232404,-480.0,0.00016027,2]
[382651954,1756696232413,-480.0,0.00016027,2]
[382651956,1756696232422,-480.0,0.00016027,2]
[382651958,1756696232432,-480.0,0.00016027,2]
[382651960,1756696232444,-706.9,0.00016027,2]
[382651962,1756696232453,-782.07,0.00016027,2]
[382651964,1756696232463,-945.81,0.00016027,2]
[382651966,1756696232473,-480.0,0.00016027,2]
[382651968,1756696232483,-492.56,0.00016027,2]
[382651970,1756696232492,-480.0,0.00016027,2]
[382651972,1756696232501,-480.0,0.00016027,2]
[382651974,1756696232511,-480.0,0.00016027,2]
[382651976,1756696232519,-480.0,0.00016027,2]
[382651978,1756696232529,-1231.83,0.00016027,2]
[382651980,1756696232539,-3143.99,0.00016027,2]
[382651982,1756696232548,-480.0,0.00016027,2]
[382651984,1756696232557,-601.67,0.00016027,2]
[382651986,1756696232566,-480.0,0.00016027,2]
[382651988,1756696232575,-668.0,0.00016028,2]
[382651990,1756696232585,-480.0,0.00016028,2]
[382651992,1756696232594,-480.0,0.00016028,2]
[382651993,1756696232604,-480.0,0.00016028,2]
[382651994,1756696232613,-908.74,0.00016028,2]
[382651995,1756696232623,-480.0,0.00016028,2]
[382651997,1756696232632,-480.0,0.00016028,2]
[382651999,1756696232641,-480.0,0.00016028,2]
[382652000,1756696232650,-919.51,0.00016028,2]
[382652001,1756696232659,-480.0,0.00016028,2]
[382652002,1756696232669,-480.0,0.00016028,2]
[382652003,1756696232679,-935.97,0.00016028,2]
[382652004,1756696232688,-480.0,0.00016028,2]
[382652006,1756696232698,-480.0,0.00016028,2]
[382652008,1756696232707,-480.0,0.00016028,2]
[382652009,1756696232717,-859.78,0.00016028,2]
[382652010,1756696232726,-480.0,0.00016028,2]
[382652011,1756696232738,-480.0,0.00016028,2]
[382652012,1756696232747,-480.0,0.00016028,2]
[382652013,1756696232757,-852.28,0.00016028,2]
[382652014,1756696232766,-480.0,0.00016028,2]
[382652017,1756696232921,-480.0,0.00016028,2]
[382652018,1756696232976,-829.43,0.00016028,2]
[382652019,1756696232986,-843.17,0.00016028,2]
[382652020,1756696232996,-915.03,0.00016028,2]
[382652021,1756696233007,-480.0,0.00016028,2]
[382652022,1756696233017,-480.0,0.00016028,2]
[382652023,1756696233026,-480.0,0.00016028,2]
[382652024,1756696233037,-1015.99,0.00016028,2]
[382652025,1756696233047,-804.57,0.00016028,2]
[382652026,1756696233057,-717.21,0.00016028,2]
[382652027,1756696233068,-1081.32,0.00016028,2]
[382652028,1756696233078,-480.0,0.00016028,2]
[382652029,1756696233088,-128.04880575,0.00016028,2]
[382652056,1756696237897,-480.0,0.00016026,2]
[382652058,1756696237907,-480.0,0.00016027,2]
[382652060,1756696237915,-112.02397009,0.00016027,2]
[382652063,1756696237927,-367.97602991,0.00016027,2]
[382652064,1756696237936,-315.91239286,0.00016027,2]
[382652067,1756696237947,-356.05760714,0.00016027,2]
[382652069,1756696237957,-194.9777001,0.00016027,2]
[382652071,1756696237966,-507.2006128,0.00016028,2]
[382652073,1756696237977,-259.64058145,0.00016028,2]
[382652075,1756696237986,-480.0,0.00016028,2]
[382652077,1756696237995,-497.31091544,0.00016028,2]
[382652079,1756696238006,-1245.53908456,0.00016028,2]
[382652081,1756696238015,-480.0,0.00016028,2]
[382652083,1756696238025,-480.0,0.00016028,2]
[382652085,1756696238034,-577.1,0.00016028,2]
[382652087,1756696238044,-1578.41,0.00016028,2]
[382652089,1756696238053,-480.0,0.00016028,2]
[382652091,1756696238063,-480.0,0.00016028,2]
[382652093,1756696238072,-1062.91,0.00016028,2]
[382652095,1756696238081,-545.1,0.00016028,2]
[382652097,1756696238090,-520.18,0.00016028,2]
[382652099,1756696238099,-1077.92,0.00016028,2]
[382652101,1756696238108,-508.22091384,0.00016028,2]
[382652263,1756696240004,-78.41908616,0.00016028,2]
[382652266,1756696240014,-507.63548368,0.00016028,2]
[382652269,1756696240023,-507.63548368,0.00016028,2]
[382652272,1756696240032,-507.63548368,0.00016028,2]
[382652275,1756696240043,-507.63548368,0.00016028,2]
[382652278,1756696240052,-507.63548368,0.00016028,2]
[382652280,1756696240062,-507.63548368,0.00016028,2]
[382652282,1756696240072,-507.63548368,0.00016028,2]
[382652285,1756696240081,-507.63548368,0.00016028,2]
[382652286,1756696240091,-507.63548368,0.00016028,2]
[382652289,1756696240100,-507.63548368,0.00016028,2]
[382652291,1756696240110,-507.63548368,0.00016028,2]
[382652293,1756696240119,-507.63548368,0.00016028,2]
[382652294,1756696240130,-507.63548368,0.00016028,2]
[382652296,1756696240141,-507.63548368,0.00016028,2]
[382652298,1756696240151,-507.63548368,0.00016028,2]
[382652300,1756696240160,-507.63548368,0.00016028,2]
[382652302,1756696240170,-507.63548368,0.00016028,2]
[382652304,1756696240180,-68.88637476,0.00016028,2]
[382652335,1756696240476,-291.98724638,0.00016028,2]
[382653365,1756696640469,-298.82935844,0.0001592,2]